[Event "SVK ECo-C Extraliga 2018-19"]
[Site "Slovakia"]
[Date "2019.02.17"]
[Round "6"]
[White "Banas, Kamil"]
[Black "Szilard, Ladislav"]
[Result "1-0"]
[ECO "C11"]
[WhiteElo "2248"]
[BlackElo "2120"]
[Annotator "NA"]
[PlyCount "79"]
[EventDate "2018.11.10"]
[EventType "team-tourn"]
[EventCountry "SVK"]
[SourceTitle "playchess.com"]
[Source "ChessBase"]
[SourceQuality "1"]
[WhiteTeam "Modra"]
[BlackTeam "Komarno"]
[TimeControl "40/5400+30:1800+30"]

1. e4 {[%emt 0:00:00]} e6 {[%emt 0:00:00]} 2. d4 {[%emt 0:00:00]} d5 {[%emt 0:00:00]} 3. Nc3 {[%emt 0:00:00]} Nf6 {[%emt 0:03:32]} 4. e5 {[%emt 0:00:37]} Nfd7 {[%emt 0:00:47]} 5. f4 {[%emt 0:01:25]} c5 {[%emt 0:01:45]} 6. Nf3 {[%emt 0:00:54]} Nc6 {[%emt 0:00:22]} 7. Be3 {[%emt 0:00:07]} a6 {[%emt 0:02:51]} 8. Qd2 {[%emt 0:00:45]} Be7 {[%emt 0:05:58]} 9. Be2 {[%emt 0:00:10]} b5 {[%emt 0:00:57]} 10. dxc5 {[%emt 0:00:10]} Bxc5 {[%emt 0:03:27]} 11. O-O {[%emt 0:02:29]} Qb6 {[%emt 0:04:31]} 12. Bf2 {[%emt 0:03:14]} Bb7 {[%emt 0:07:19]} 13. a3 {[%emt 0:00:58]} h6 {[%emt 0:02:49]} 14. b4 {[%emt 0:02:28]} Bxf2+ {[%emt 0:00:28]} 15. Rxf2 {[%emt 0:00:01]} Rc8 {[%emt 0:08:15]} 16. Re1 {[%emt 0:03:56]} g6 {[%emt 0:04:51]} 17. Bd3 {[%emt 0:04:51]} Ne7 {[%emt 0:09:11]} 18. Nd1 {[%emt 0:03:44]} Qc7 {[%emt 0:03:51]} 19. Kh1 {[%emt 0:02:22]} Nb6 {[%emt 0:00:46]} 20. Qc1 {[%emt 0:02:47]} Nc4 {[%emt 0:01:10]} 21. Qa1 {[%emt 0:00:47]} Qb6 {[%emt 0:03:38]} 22. Rfe2 {[%emt 0:02:55]} Rg8 {[%emt 0:02:43]} 23. Nf2 {[%emt 0:01:58]} h5 {[%emt 0:02:41]} 24. Nh3 {[%emt 0:00:31]} Nf5 {[%emt 0:01:29]} 25. Nhg5 {[%emt 0:02:25]} Rh8 {[%emt 0:01:45]} 26. Bxf5 {[%emt 0:03:02]} gxf5 {[%emt 0:00:10]} 27. Nd4 {[%emt 0:04:15]} Ke7 {[%emt 0:00:38]} 28. Nxf5+ {[%emt 0:05:35]} exf5 {[%emt 0:00:21]} 29. Nxf7 {[%emt 0:00:05]} Rhg8 {[%emt 0:09:28]} 30. Nd6 {[%emt 0:00:54]} Ke6 {[%emt 0:00:39]} 31. Qc3 {[%emt 0:04:24]} Rg4 {[%emt 0:04:23]} 32. Nxf5 {[%emt 0:03:10]} Kxf5 {[%emt 0:06:35]} 33. Qd3+ {[%emt 0:00:33]} Ke6 {[%emt 0:00:16]} 34. Qh7 {[%emt 0:00:17]} Rf8 {[%emt 0:01:59]} 35. Qh6+ {[%emt 0:00:03]} Ke7 {[%emt 0:00:26]} 36. e6 {[%emt 0:00:06]} Rgxf4 {[%emt 0:00:38]} 37. Qh7+ {[%emt 0:00:14]} Kf6 {[%emt 0:02:08]} 38. Qh6+ {[%emt 0:00:29]} Ke7 {[%emt 0:03:37]} 39. Qg7+ {[%emt 0:00:01]} Ke8 {[%emt 0:00:16]} 40. Qd7# {Rh8} 1-0

[Event "SVK ECo-C Extraliga 2018-19"]
[Site "Slovakia"]
[Date "2019.02.17"]
[Round "6"]
[White "Voros, Gellert"]
[Black "Schwarz, Dusan"]
[Result "0-1"]
[ECO "C26"]
[WhiteElo "2154"]
[BlackElo "2330"]
[Annotator "NA RC"]
[PlyCount "108"]
[EventDate "2018.11.10"]
[EventType "team-tourn"]
[EventCountry "SVK"]
[SourceTitle "playchess.com"]
[Source "ChessBase"]
[SourceQuality "1"]
[WhiteTeam "Komarno"]
[BlackTeam "Modra"]
[TimeControl "40/5400+30:1800+30"]

1. e4 {[%emt 0:00:00]} e5 {[%emt 0:00:00]} 2. Nc3 {[%emt 0:00:00]} Nf6 {[%emt 0:00:21]} 3. Bc4 {[%emt 0:00:08]} Bc5 {[%emt 0:02:44]} 4. d3 {[%emt 0:01:12]} d6 {[%emt 0:05:57]} 5. Bg5 {[%emt 0:07:12]} c6 {[%emt 0:07:11]} 6. Qd2 {[%emt 0:21:14]} Nbd7 {[%emt 0:02:28]} 7. Na4 {[%emt 0:06:46]} b5 {[%emt 0:08:53]} 8. Nxc5 {[%emt 0:01:01]} Nxc5 {[%emt 0:02:08]} 9. Bb3 {[%emt 0:00:09]} h6 {[%emt 0:01:27]} 10. Be3 {[%emt 0:03:29]} a5 {[%emt 0:02:22]} 11. Bxc5 {[%emt 0:09:27]} dxc5 {[%emt 0:01:01]} 12. c3 {[%emt 0:00:13]} a4 {[%emt 0:08:20]} 13. Bc2 {[%emt 0:00:44]} a3 {[%emt 0:00:37]} 14. b4 {[%emt 0:03:00]} cxb4 {[%emt 0:01:37]} 15. Nf3 {[%emt 0:06:48]} Qd6 {[%emt 0:02:56]} 16. cxb4 {[%emt 0:04:58]} Bg4 {[%emt 0:00:16]} 17. O-O {[%emt 0:03:21]} Bxf3 {[%emt 0:05:20]} 18. gxf3 {[%emt 0:00:07]} Nh5 {[%emt 0:00:31]} 19. Kh1 {[%emt 0:01:41]} Nf4 {[%emt 0:00:47]} 20. d4 {[%emt 0:01:59]} Qxd4 {[%emt 0:03:01]} 21. Qxd4 {[%emt 0:00:58]} exd4 {[%emt 0:00:06]} 22. Rac1 {[%emt 0:05:06]} Ke7 {[%emt 0:02:22]} 23. Bb3 {[%emt 0:00:38]} Rac8 {[%emt 0:00:44]} 24. Rfd1 {[%emt 0:00:30]} Rhd8 {[%emt 0:00:32]} 25. h4 {[%emt 0:01:08]} g5 {[%emt 0:08:39]} 26. Rc5 {[%emt 0:00:54]} f6 {[%emt 0:00:38]} 27. Kh2 {[%emt 0:02:34]} d3 {[%emt 0:03:56]} 28. Kg3 {[%emt 0:01:59]} Ne2+ {[%emt 0:01:10]} 29. Kg4 {[%emt 0:00:28]} d2 {[%emt 0:12:28]} 30. hxg5 {[%emt 0:05:03]} hxg5 {[%emt 0:00:21]} 31. e5 {[%emt 0:07:35]} Nd4 {[%emt 0:12:04]} 32. exf6+ {[%emt 0:00:34]} Kxf6 {[%emt 0:00:09]} 33. Rxd2 {[%emt 0:00:43]} Nxb3 {[%emt 0:00:21]} 34. Rf5+ {[%emt 0:02:07]} Ke6 {[%emt 0:00:41]} 35. Re2+ {[%emt 0:00:14]} Kd6 {[%emt 0:00:35]} 36. axb3 {[%emt 0:00:06]} Ra8 {[%emt 0:01:16]} 37. Ra2 {[%emt 0:00:18]} Kc7 {[%emt 0:00:59]} 38. Rf7+ {[%emt 0:03:04]} Kb6 {[%emt 0:00:19]} 39. Re7 {[%emt 0:00:38]} Rd4+ {[%emt 0:01:19]} 40. Re4 {[%emt 0:00:10]} Rd3 {[%emt 0:01:26]} 41. Re3 {[%emt 0:30:18]} Rd1 {[%emt 0:07:12]} 42. Kxg5 {[%emt 0:00:00]} Rb1 {[%emt 0:02:07]} 43. Rc3 {[%emt 0:00:00]} Rb2 {[%emt 0:00:44]} 44. Ra1 {[%emt 0:00:00]} a2 {[%emt 0:00:36]} 45. Rcc1 {[%emt 0:00:00]} Rxf2 {[%emt 0:00:58]} 46. f4 {[%emt 0:00:00]} Rf8 {[%emt 0:03:51]} 47. Rg1 {[%emt 0:00:00]} c5 {[%emt 0:04:24]} 48. Rg4 {[%emt 0:02:52]} c4 {[%emt 0:01:20]} 49. bxc4 {[%emt 0:00:36]} bxc4 {[%emt 0:00:05]} 50. Kh4 {[%emt 0:00:42]} Kb5 {[%emt 0:00:33]} 51. Kg3 {[%emt 0:00:26]} Rb2 {[%emt 0:01:13]} 52. Rg7 {[%emt 0:00:25]} Ra8 {[%emt 0:00:38]} 53. Rg5+ {[%emt 0:00:44]} Kxb4 {[%emt 0:00:30]} 54. Rg7 {[%emt 0:00:22]} Ra3+ {[%emt 0:00:44]} 0-1

[Event "SVK ECo-C Extraliga 2018-19"]
[Site "Slovakia"]
[Date "2019.02.17"]
[Round "6"]
[White "Joba, Arpad"]
[Black "Federic, Jozef"]
[Result "1/2-1/2"]
[ECO "B40"]
[WhiteElo "2009"]
[BlackElo "2207"]
[Annotator "NA"]
[PlyCount "100"]
[EventDate "2018.11.10"]
[EventType "team-tourn"]
[EventCountry "SVK"]
[SourceTitle "playchess.com"]
[Source "ChessBase"]
[SourceQuality "1"]
[WhiteTeam "Komarno"]
[BlackTeam "Modra"]
[TimeControl "40/5400+30:1800+30"]

1. e4 {[%emt 0:00:00]} c5 {[%emt 0:00:00]} 2. Nf3 {[%emt 0:00:00]} e6 {[%emt 0:00:00]} 3. c3 {[%emt 0:00:00]} Nf6 {[%emt 0:00:07]} 4. e5 {[%emt 0:00:00]} Nd5 {[%emt 0:00:07]} 5. d4 {[%emt 0:00:00]} cxd4 {[%emt 0:00:26]} 6. cxd4 {[%emt 0:00:00]} b6 {[%emt 0:00:54]} 7. Nc3 {[%emt 0:00:43]} Nxc3 {[%emt 0:01:54]} 8. bxc3 {[%emt 0:00:19]} Qc7 {[%emt 0:00:42]} 9. Bd2 {[%emt 0:00:42]} Be7 {[%emt 0:01:16]} 10. Bd3 {[%emt 0:01:41]} Ba6 {[%emt 0:00:24]} 11. Bxa6 {[%emt 0:06:04]} Nxa6 {[%emt 0:02:49]} 12. Qe2 {[%emt 0:02:50]} Qb7 {[%emt 0:02:23]} 13. O-O {[%emt 0:01:22]} O-O {[%emt 0:01:58]} 14. a4 {[%emt 0:08:24]} Rac8 {[%emt 0:02:35]} 15. Rfc1 {[%emt 0:02:05]} d6 {[%emt 0:04:28]} 16. a5 {[%emt 0:07:57]} Nb8 {[%emt 0:06:09]} 17. axb6 {[%emt 0:07:30]} axb6 {[%emt 0:00:58]} 18. Qb5 {[%emt 0:09:21]} Nd7 {[%emt 0:03:40]} 19. Qb4 {[%emt 0:07:30]} Qc7 {[%emt 0:05:47]} 20. Ra4 {[%emt 0:07:55]} Rfe8 {[%emt 0:02:56]} 21. exd6 {[%emt 0:00:57]} Bxd6 {[%emt 0:00:15]} 22. Qb3 {[%emt 0:00:38]} Qc6 {[%emt 0:12:37]} 23. Rb1 {[%emt 0:08:23]} Ra8 {[%emt 0:01:50]} 24. Raa1 {[%emt 0:02:12]} Rec8 {[%emt 0:04:01]} 25. Rxa8 {[%emt 0:02:36]} Rxa8 {[%emt 0:00:27]} 26. c4 {[%emt 0:01:52]} Rc8 {[%emt 0:12:39]} 27. Rc1 {[%emt 0:01:59]} Nf6 {[%emt 0:05:38]} 28. h3 {[%emt 0:04:46]} Qc7 {[%emt 0:05:23]} 29. Bb4 {[%emt 0:09:02]} Bxb4 {[%emt 0:03:52]} 30. Qxb4 {[%emt 0:00:18]} h6 {[%emt 0:04:06]} 31. Ne5 {[%emt 0:02:27]} Qd8 {[%emt 0:01:11]} 32. Qb2 {[%emt 0:00:22]} Qd6 {[%emt 0:01:07]} 33. Rb1 {[%emt 0:00:23]} Nd7 {[%emt 0:00:52]} 34. Qb5 {[%emt 0:02:14]} Nxe5 {[%emt 0:01:06]} 35. dxe5 {[%emt 0:00:12]} Qd4 {[%emt 0:02:01]} 36. Qxb6 {[%emt 0:01:35]} Qxb6 {[%emt 0:00:25]} 37. Rxb6 {[%emt 0:00:06]} Rxc4 {[%emt 0:00:04]} 38. Rb8+ {[%emt 0:01:05]} Kh7 {[%emt 0:00:14]} 39. Rb2 {[%emt 0:02:23]} Re4 {[%emt 0:06:37]} 40. Rb5 {[%emt 0:00:06]} Kg6 {[%emt 0:00:15]} 41. f3 {[%emt 0:30:15]} Rd4 {[%emt 0:30:48]} 42. Kf2 {[%emt 0:00:00]} Rd2+ {[%emt 0:00:00]} 43. Kg3 {[%emt 0:00:00]} h5 {[%emt 0:00:00]} 44. h4 {[%emt 0:00:00]} Rd4 {[%emt 0:00:00]} 45. Rb7 {[%emt 0:00:00]} Rd2 {[%emt 0:00:00]} 46. Ra7 {[%emt 0:00:00]} Re2 {[%emt 0:00:00]} 47. f4 {[%emt 0:00:00]} Re3+ {[%emt 0:00:00]} 48. Kf2 {[%emt 0:00:00]} Rb3 {[%emt 0:00:00]} 49. Re7 {[%emt 0:00:00]} Ra3 {[%emt 0:00:00]} 50. g3 {[%emt 0:00:00]} Rb3 1/2-1/2

[Event "SVK ECo-C Extraliga 2018-19"]
[Site "Slovakia"]
[Date "2019.02.17"]
[Round "6.4"]
[White "Haring, Filip"]
[Black "Bokros, Albert"]
[Result "0-1"]
[ECO "B41"]
[WhiteElo "2286"]
[BlackElo "2454"]
[Annotator "RC"]
[PlyCount "134"]
[EventDate "2018.11.10"]
[EventType "team-tourn"]
[EventCountry "SVK"]
[SourceTitle "playchess.com"]
[Source "ChessBase"]
[SourceQuality "1"]
[WhiteTeam "Liptovska"]
[BlackTeam "Streda"]
[TimeControl "40/5400+30:1800+30"]

1. e4 {[%emt 0:00:00]} c5 {[%emt 0:00:00]} 2. Nf3 {[%emt 0:00:00]} e6 {[%emt 0:00:54]} 3. d4 {[%emt 0:00:23]} cxd4 {[%emt 0:00:07]} 4. Nxd4 {[%emt 0:00:12]} a6 {[%emt 0:00:26]} 5. c4 {[%emt 0:01:54]} Qc7 {[%emt 0:01:42]} 6. Nc3 {[%emt 0:00:28]} Nf6 {[%emt 0:01:11]} 7. Be2 {[%emt 0:06:09]} b6 {[%emt 0:01:54]} 8. O-O {[%emt 0:01:15]} Bb7 {[%emt 0:06:47]} 9. f3 {[%emt 0:08:46]} Bd6 {[%emt 0:03:39]} 10. Kh1 {[%emt 0:02:39]} Be7 {[%emt 0:07:41]} 11. Be3 {[%emt 0:01:40]} O-O {[%emt 0:00:35]} 12. Rc1 {[%emt 0:01:19]} d6 {[%emt 0:00:41]} 13. Qe1 {[%emt 0:02:51]} Nbd7 {[%emt 0:04:22]} 14. Qg3 {[%emt 0:00:55]} Rfe8 {[%emt 0:01:05]} 15. Rfd1 {[%emt 0:05:20]} Bf8 {[%emt 0:05:51]} 16. b4 {[%emt 0:09:21]} Rac8 {[%emt 0:02:53]} 17. Qf2 {[%emt 0:01:00]} Qb8 {[%emt 0:06:02]} 18. a3 {[%emt 0:09:03]} Be7 {[%emt 0:08:41]} 19. Nb3 {[%emt 0:04:54]} Bd8 {[%emt 0:02:20]} 20. Na4 {[%emt 0:04:04]} Ba8 {[%emt 0:04:15]} 21. Nd4 {[%emt 0:10:15]} Bc7 {[%emt 0:02:58]} 22. Qg1 {[%emt 0:04:24]} Rcd8 {[%emt 0:05:21]} 23. Rc2 {[%emt 0:10:13]} h6 {[%emt 0:05:34]} 24. Rdc1 {[%emt 0:01:32]} Ne5 {[%emt 0:02:04]} 25. Nb3 {[%emt 0:02:48]} Nfd7 {[%emt 0:01:48]} 26. Bf2 {[%emt 0:04:43]} Ng6 {[%emt 0:01:29]} 27. Be3 {[%emt 0:01:22]} Rc8 {[%emt 0:05:49]} 28. Nd4 {[%emt 0:01:21]} Nde5 {[%emt 0:01:41]} 29. Nb3 {[%emt 0:02:26]} Nd7 {[%emt 0:04:56]} 30. Nd4 {[%emt 0:00:13]} Bd8 {[%emt 0:01:03]} 31. Qf2 {[%emt 0:01:56]} Bh4 {[%emt 0:00:50]} 32. Qf1 {[%emt 0:00:45]} Bg5 {[%emt 0:02:38]} 33. f4 {[%emt 0:01:20]} Nxf4 {[%emt 0:05:11]} 34. Bxf4 {[%emt 0:00:04]} Bxf4 {[%emt 0:00:05]} 35. Qxf4 {[%emt 0:00:03]} e5 {[%emt 0:00:06]} 36. Qf5 {[%emt 0:01:02]} exd4 {[%emt 0:01:56]} 37. Qxd7 {[%emt 0:00:04]} Bc6 {[%emt 0:00:08]} 38. Qf5 {[%emt 0:01:04]} Bxe4 {[%emt 0:01:47]} 39. Qf1 {[%emt 0:00:04]} Bxc2 {[%emt 0:01:11]} 40. Rxc2 {[%emt 0:00:05]} Re3 {[%emt 0:00:38]} 41. Nb2 {[%emt 0:31:29]} Rce8 {[%emt 0:12:42]} 42. Nd3 {[%emt 0:00:00]} Qd8 {[%emt 0:02:31]} 43. h3 {[%emt 0:00:00]} Qh4 {[%emt 0:02:47]} 44. Rd2 {[%emt 0:00:00]} R8e6 {[%emt 0:05:40]} 45. Qf5 {[%emt 0:00:00]} g6 {[%emt 0:06:20]} 46. Qg4 {[%emt 0:00:00]} Qf6 {[%emt 0:01:20]} 47. Bf3 {[%emt 0:00:00]} h5 {[%emt 0:00:45]} 48. Qf4 {[%emt 0:00:00]} Qg7 {[%emt 0:01:13]} 49. Nf2 {[%emt 0:00:34]} Qe5 {[%emt 0:00:59]} 50. Rxd4 {[%emt 0:02:51]} Rxa3 {[%emt 0:00:22]} 51. Qxe5 {[%emt 0:00:53]} dxe5 {[%emt 0:00:05]} 52. Rd8+ {[%emt 0:00:05]} Kg7 {[%emt 0:00:08]} 53. c5 {[%emt 0:01:32]} bxc5 {[%emt 0:00:17]} 54. bxc5 f5 {[%emt 0:00:29]} 55. c6 {[%emt 0:01:07]} Rc3 {[%emt 0:00:39]} 56. Rd7+ {[%emt 0:00:54]} Kf6 {[%emt 0:00:25]} 57. Bd5 {[%emt 0:00:29]} Re7 {[%emt 0:00:09]} 58. Rd6+ {[%emt 0:00:19]} Kg5 {[%emt 0:01:07]} 59. h4+ {[%emt 0:00:26]} Kf4 {[%emt 0:00:31]} 60. Rxg6 {[%emt 0:00:48]} e4 {[%emt 0:00:12]} 61. Nh3+ {[%emt 0:00:34]} Ke5 {[%emt 0:00:10]} 62. Bg8 {[%emt 0:00:25]} a5 {[%emt 0:01:14]} 63. Ng5 {[%emt 0:00:22]} a4 {[%emt 0:00:16]} 64. Nf7+ {[%emt 0:00:33]} Kf4 {[%emt 0:00:11]} 65. Nd8 {[%emt 0:00:37]} e3 {[%emt 0:01:01]} 66. Ne6+ {[%emt 0:00:29]} Ke5 {[%emt 0:00:07]} 67. Ng5 {[%emt 0:00:34]} e2 {[%emt 0:00:10]} 0-1

[Event "SVK ECo-C Extraliga 2018-19"]
[Site "Slovakia"]
[Date "2019.02.17"]
[Round "6.7"]
[White "Spacek, Oliver"]
[Black "Horvath, Mario"]
[Result "1-0"]
[ECO "D11"]
[WhiteElo "2184"]
[BlackElo "2198"]
[Annotator "NA"]
[PlyCount "77"]
[EventDate "2018.11.10"]
[EventType "team-tourn"]
[EventCountry "SVK"]
[SourceTitle "playchess.com"]
[Source "ChessBase"]
[SourceQuality "1"]
[WhiteTeam "Osuske"]
[BlackTeam "Podhajska"]
[TimeControl "40/5400+30:1800+30"]

1. d4 {[%emt 0:00:00]} d5 {[%emt 0:00:00]} 2. c4 {[%emt 0:00:25]} c6 {[%emt 0:00:00]} 3. Nf3 {[%emt 0:00:29]} Nf6 {[%emt 0:00:10]} 4. e3 {[%emt 0:00:14]} a6 {[%emt 0:01:23]} 5. Nbd2 {[%emt 0:06:34]} Bf5 {[%emt 0:04:49]} 6. Qb3 {[%emt 0:10:01]} Qc7 {[%emt 0:06:13]} 7. Nh4 {[%emt 0:05:33]} Bg6 {[%emt 0:05:50]} 8. Nxg6 {[%emt 0:09:37]} hxg6 {[%emt 0:00:45]} 9. g3 {[%emt 0:00:22]} Nbd7 {[%emt 0:07:06]} 10. Bg2 {[%emt 0:02:14]} e6 {[%emt 0:04:01]} 11. O-O {[%emt 0:02:05]} b5 {[%emt 0:08:00]} 12. cxd5 {[%emt 0:08:07]} cxd5 {[%emt 0:00:40]} 13. e4 {[%emt 0:08:40]} Nb6 {[%emt 0:13:03]} 14. e5 {[%emt 0:11:55]} Nfd7 {[%emt 0:02:00]} 15. Nf3 {[%emt 0:00:03]} Qc4 {[%emt 0:19:03]} 16. Qe3 {[%emt 0:02:58]} Be7 {[%emt 0:02:10]} 17. Qf4 {[%emt 0:03:25]} Qc2 {[%emt 0:03:20]} 18. g4 {[%emt 0:06:33]} f5 {[%emt 0:06:43]} 19. exf6 {[%emt 0:04:16]} gxf6 {[%emt 0:00:05]} 20. Re1 {[%emt 0:01:42]} g5 {[%emt 0:00:16]} 21. Qe3 {[%emt 0:01:29]} Nf8 {[%emt 0:00:05]} 22. b3 {[%emt 0:00:54]} Qc7 {[%emt 0:01:39]} 23. Qe2 {[%emt 0:06:46]} Qd6 {[%emt 0:07:06]} 24. h3 {[%emt 0:03:46]} Bd8 {[%emt 0:00:10]} 25. a4 {[%emt 0:00:22]} b4 {[%emt 0:03:01]} 26. Bd2 {[%emt 0:00:02]} Nc8 {[%emt 0:00:30]} 27. Rac1 {[%emt 0:00:45]} Ne7 {[%emt 0:00:07]} 28. Rc5 {[%emt 0:01:04]} Bb6 {[%emt 0:00:19]} 29. Bxb4 {[%emt 0:00:14]} Bxc5 {[%emt 0:00:43]} 30. dxc5 {[%emt 0:00:11]} Qb8 {[%emt 0:03:33]} 31. Bc3 {[%emt 0:00:35]} e5 {[%emt 0:00:41]} 32. Nxe5 {[%emt 0:00:41]} Qxb3 {[%emt 0:00:03]} 33. Nc6 {[%emt 0:01:00]} Rh7 {[%emt 0:01:30]} 34. Bxf6 {[%emt 0:01:38]} Kd7 {[%emt 0:00:39]} 35. Nxe7 {[%emt 0:00:30]} Re8 {[%emt 0:01:04]} 36. Bxd5 {[%emt 0:00:43]} Qxh3 {[%emt 0:00:18]} 37. Be6+ {[%emt 0:00:24]} Kc7 {[%emt 0:00:41]} 38. Qe5+ {[%emt 0:00:12]} Kb7 {[%emt 0:00:28]} 39. Bd5+ {[%emt 0:00:08]} 1-0

[Event "SVK ECo-C Extraliga 2018-19"]
[Site "Slovakia"]
[Date "2019.02.17"]
[Round "6.8"]
[White "Motycakova, Monika"]
[Black "Csonka, Attila Istvan"]
[Result "0-1"]
[ECO "B41"]
[WhiteElo "2156"]
[BlackElo "2352"]
[Annotator "NA"]
[PlyCount "110"]
[EventDate "2018.11.10"]
[EventType "team-tourn"]
[EventCountry "SVK"]
[SourceTitle "playchess.com"]
[Source "ChessBase"]
[SourceQuality "1"]
[WhiteTeam "Liptovska"]
[BlackTeam "Streda"]
[TimeControl "40/5400+30:1800+30"]

1. e4 {[%emt 0:01:47]} c5 {[%emt 0:00:00]} 2. Nf3 {[%emt 0:00:11]} e6 {[%emt 0:00:00]} 3. d4 {[%emt 0:00:04]} cxd4 {[%emt 0:00:00]} 4. Nxd4 {[%emt 0:00:05]} a6 {[%emt 0:00:00]} 5. Be2 {[%emt 0:06:54]} Nf6 {[%emt 0:01:45]} 6. Nc3 {[%emt 0:00:31]} Qc7 {[%emt 0:00:30]} 7. O-O {[%emt 0:00:38]} Bb4 {[%emt 0:00:24]} 8. Qd3 {[%emt 0:05:58]} Nc6 {[%emt 0:00:45]} 9. Nxc6 {[%emt 0:03:24]} bxc6 {[%emt 0:00:30]} 10. Be3 {[%emt 0:06:35]} d5 {[%emt 0:04:19]} 11. exd5 {[%emt 0:07:51]} cxd5 {[%emt 0:01:52]} 12. Bd4 {[%emt 0:05:36]} Be7 {[%emt 0:01:56]} 13. f4 {[%emt 0:01:06]} O-O {[%emt 0:02:41]} 14. Kh1 {[%emt 0:15:13]} Bb7 {[%emt 0:04:26]} 15. Rf3 {[%emt 0:02:16]} Ne4 {[%emt 0:04:22]} 16. Raf1 {[%emt 0:02:00]} f5 {[%emt 0:03:01]} 17. Rh3 {[%emt 0:05:45]} Bf6 {[%emt 0:02:59]} 18. Bd1 {[%emt 0:11:01]} Rac8 {[%emt 0:02:25]} 19. Ne2 {[%emt 0:01:23]} Bc6 {[%emt 0:02:38]} 20. Bxf6 {[%emt 0:05:17]} Rxf6 {[%emt 0:01:26]} 21. Nd4 {[%emt 0:00:44]} Bb5 {[%emt 0:01:09]} 22. Nxb5 {[%emt 0:01:44]} axb5 {[%emt 0:00:14]} 23. Qxb5 {[%emt 0:00:03]} Rb8 {[%emt 0:00:34]} 24. Qa4 {[%emt 0:01:50]} Qc5 {[%emt 0:02:14]} 25. Rhf3 {[%emt 0:06:47]} Rf7 {[%emt 0:01:44]} 26. b4 {[%emt 0:04:56]} Qxb4 {[%emt 0:04:11]} 27. Qxb4 {[%emt 0:00:06]} Rxb4 {[%emt 0:00:04]} 28. Ra3 {[%emt 0:00:19]} Rc7 {[%emt 0:00:43]} 29. g3 {[%emt 0:00:53]} Rd4 {[%emt 0:01:05]} 30. Rd3 {[%emt 0:02:06]} Ra4 {[%emt 0:01:14]} 31. c4 {[%emt 0:01:33]} Rxa2 {[%emt 0:00:53]} 32. cxd5 {[%emt 0:00:12]} Nf2+ {[%emt 0:00:32]} 33. Rxf2 {[%emt 0:00:21]} Rxf2 {[%emt 0:00:06]} 34. dxe6 {[%emt 0:00:31]} Kf8 {[%emt 0:00:07]} 35. Kg1 {[%emt 0:00:48]} Rb2 {[%emt 0:00:08]} 36. Re3 {[%emt 0:00:56]} Ke7 {[%emt 0:00:24]} 37. Rb3 {[%emt 0:00:27]} Rd2 {[%emt 0:00:37]} 38. Rb1 {[%emt 0:00:18]} Kxe6 {[%emt 0:00:22]} 39. Bf3 {[%emt 0:00:45]} Rc3 {[%emt 0:00:50]} 40. Rf1 {[%emt 0:00:30]} h6 {[%emt 0:01:05]} 41. h4 {[%emt 0:18:29]} g6 {[%emt 0:00:37]} 42. Rf2 {[%emt 0:01:16]} Rcc2 {[%emt 0:01:36]} 43. Rxd2 {[%emt 0:03:41]} Rxd2 {[%emt 0:00:11]} 44. Bb7 {[%emt 0:03:15]} Kd6 {[%emt 0:00:44]} 45. Ba8 {[%emt 0:00:50]} Kc5 {[%emt 0:00:06]} 46. Bb7 {[%emt 0:00:03]} Kd4 {[%emt 0:00:06]} 47. Ba8 {[%emt 0:00:43]} Ke3 {[%emt 0:00:43]} 48. Bc6 {[%emt 0:00:18]} Rd6 {[%emt 0:00:24]} 49. Bb7 {[%emt 0:04:17]} g5 {[%emt 0:00:21]} 50. hxg5 {[%emt 0:00:48]} hxg5 {[%emt 0:00:06]} 51. fxg5 {[%emt 0:00:18]} Rg6 {[%emt 0:00:07]} 52. Kg2 {[%emt 0:00:45]} Rxg5 {[%emt 0:00:08]} 53. Bf3 {[%emt 0:00:32]} f4 {[%emt 0:00:09]} 54. g4 {[%emt 0:00:02]} Rb5 {[%emt 0:00:32]} 55. Bc6 {[%emt 0:00:14]} Rb2+ {[%emt 0:00:23]} 0-1

[Event "SVK ECo-C Extraliga 2018-19"]
[Site "Slovakia"]
[Date "2019.02.17"]
[Round "6.8"]
[White "Szucs, Vladimir"]
[Black "Lintner, Igor"]
[Result "1/2-1/2"]
[ECO "E00"]
[WhiteElo "2155"]
[BlackElo "2165"]
[Annotator "NA"]
[PlyCount "37"]
[EventDate "2018.11.10"]
[EventType "team-tourn"]
[EventCountry "SVK"]
[SourceTitle "playchess.com"]
[Source "ChessBase"]
[SourceQuality "1"]
[WhiteTeam "Podhajska"]
[BlackTeam "Osuske"]
[TimeControl "40/5400+30:1800+30"]

1. d4 {[%emt 0:00:00]} e6 {[%emt 0:00:00]} 2. c4 {[%emt 0:00:02]} Bb4+ {[%emt 0:00:28]} 3. Bd2 {[%emt 0:00:19]} a5 {[%emt 0:00:21]} 4. Nf3 {[%emt 0:00:37]} Nc6 {[%emt 0:01:38]} 5. Nc3 {[%emt 0:01:34]} d6 {[%emt 0:00:59]} 6. a3 {[%emt 0:04:47]} Bxc3 {[%emt 0:00:10]} 7. Bxc3 {[%emt 0:00:04]} d5 {[%emt 0:07:55]} 8. e3 {[%emt 0:01:55]} Nf6 {[%emt 0:00:54]} 9. Bd3 {[%emt 0:01:26]} O-O {[%emt 0:21:27]} 10. O-O {[%emt 0:03:49]} b6 {[%emt 0:06:25]} 11. Rc1 {[%emt 0:04:53]} Bb7 {[%emt 0:04:15]} 12. Qc2 {[%emt 0:04:46]} dxc4 {[%emt 0:09:04]} 13. Bxc4 {[%emt 0:00:10]} Ne7 {[%emt 0:01:17]} 14. Ne5 {[%emt 0:02:31]} Qd6 {[%emt 0:04:03]} 15. Be2 {[%emt 0:07:26]} Rfc8 {[%emt 0:08:45]} 16. Bf3 {[%emt 0:05:52]} Bxf3 {[%emt 0:06:51]} 17. Nxf3 {[%emt 0:00:04]} Qd5 {[%emt 0:04:27]} 18. Qe2 {[%emt 0:03:14]} Ne4 {[%emt 0:03:50]} 19. Nd2 {[%emt 0:04:19]} 1/2-1/2